Workbook

Sheet Sheet1
A1: Ricardo Gaspar | B1: Nº 35377
A2: A | B2: =2+7 -> 9
A3: B | B3: =3+7 -> 10
A4: C | B4: =1+2 -> 3
A5: D | B5: =5+5 -> 10
A8: Exercício 1
A10: V1 (V) | B10: =(B2+B4+B5)/8 -> 2.75
A11: Vt (V) | B11: 1
A12: μnCox (μA/V^2) | B12: 20
A13: W/L | B13: 50
A15: V2 (V) | B15: R1 (KOhm) | C15: ID1 (mA) | D15: Vgs-Vt (V) | E15: Vds (V) | F15: Zona de funcionamento
A16: 6 | B16: =B2/10 -> 0.9 | C16: =0.5*B12*POWER(10,-3)*B13*POWER(D16,2) -> 1.53125 | D16: =$B$10-$B$11 -> 1.750 | E16: =A16-C16*B16 -> 4.622 | F16: Saturação
A17: 4 | B17: =B3/2 -> 5 | C17: =D25*1000 -> 0.706816 | D17: =$B$10-$B$11 -> 1.750 | E17: =A17-C17*B17 -> 0.466 | F17: Tríodo
B20: Parâmetros
B21: aX^2 | C21: bX | D21: c
B22: =-12.5*1000 -> -12500 | C22: 10.25 | D22: =POWER(-10,-3) -> -0.001
B23: Formula resolvente
B24: delta | C24: X1 | D24: X2
B25: =POWER(C22,2)-4*B22*D22 -> 55.062500 | C25: =(-C22+SQRT(B25))/(2*B22) -> 0.000113 | D25: =(-C22-SQRT(B25))/(2*B22) -> 0.000707
A28: Exercício 2
A30: V2 (V) | B30: =(B2+B4+B5)/5 -> 4.4
A31: Vt (V) | B31: 1
A32: μnCox (μA/V^2) | B32: =20 -> 20
A33: R1 (KOhm) | B33: =B3/10 -> 1
A35: V1 (V) | B35: W/L | C35: ID1 (mA) | D35: |Vgs-Vt| (V) | E35: |Vds| (V) | F35: Zona de funcionamento
A36: 1 | B36: =B2 -> 9 | C36: =0.5*$B$32*POWER(10,-6)*B36*POWER(D36,2)*1000 -> 0.5184 | D36: =($B$30-A36)-$B$31 -> 2.400 | E36: =$B$30-$B$33*C36 -> 3.882 | F36: Saturação
A37: 1 | B37: =40*(B3+B5) -> 800 | C37: =C47*1000 -> 4.285670831 | D37: =($B$30-A37)-$B$31 -> 2.400 | E37: =$B$30-$B$33*C37 -> 0.114 | F37: Tríodo
A38: 10 | B38: =B4 -> 3 | C38: 0 | D38: =ABS(($B$30-A38)-$B$31) -> 6.600 | E38: =$B$30-$B$33*C38 -> 4.400 | F38: Não Conduz
B42: Parâmetros
B43: aX^2 | C43: bX | D43: c
B44: =8000 -> 8000 | C44: -31 | D44: =-$B$37*B32*POWER(10,-6)*2.4*4.4+$B$37*B32*POWER(10,-6)*0.5*19.36 -> -0.014080000
B45: Formula resolvente
B46: delta | C46: X1 | D46: X2
B47: =POWER(C44,2)-4*B44*D44 -> 1411.560000 | C47: =(-C44+SQRT(B47))/(2*B44) -> 0.004285671 | D47: =(-C44-SQRT(B47))/(2*B44) -> -0.000410671
B48: Nesta tabela está o cálculo do Id quando o transístor está na zona de Tríodo. Os valores obtidos estão em Amperes.
A53: Exercício 3
A55: A | B55: Ā | C55: B | D55: Y = A.!B
A56: 0 | B56: 1 | C56: 0 | D56: 0
A57: 0 | B57: 1 | C57: 1 | D57: 0
A58: 1 | B58: 0 | C58: 1 | D58: 0
A59: 1 | B59: 0 | C59: 0 | D59: 1
A64: alínea b
